[Event "3rd HoliCup Lake City 2019"]
[Site "Udaipur"]
[Date "2019.03.29"]
[Round "3.15"]
[White "Kadam, Om Manish"]
[Black "Bhat, Sanjay"]
[Result "0-1"]
[ECO "C60"]
[WhiteElo "1920"]
[BlackElo "1592"]
[Annotator "NA RC"]
[PlyCount "70"]
[EventDate "2019.??.??"]
[EventCountry "IND"]
[SourceTitle "playchess.com"]
[Source "ChessBase"]
[SourceQuality "1"]
[TimeControl "5400+30"]

{[%evp 17,70,21,27,0,62,10,25,5,16,37,15,15,74,70,66,46,55,58,50,66,50,33,58,55,175,187,233,202,201,270,349,211,239,212,223,233,245,245,313,326,327,272,291,252,248,247,377,227,314,-639,-628,-640,-726,-987,-1044]} 1. e4 {[%emt 0:00:00]} e5 {[%emt 0:00:00]} 2. Nf3 {[%emt 0:00:15]} Nc6 {[%emt 0:00:00]} 3. Bb5 {[%emt 0:00:07]} g6 {[%emt 0:00:00]} 4. c3 {[%emt 0:00:04]} a6 {[%emt 0:00:00]} 5. Ba4 {[%emt 0:00:05]} Bg7 {[%emt 0:00:04]} 6. d4 {[%emt 0:00:04] C70: Ruy Lopez: 3...a6 4 Ba4, Norwegian and Delayed Schliemann} exd4 {[%emt 0:00:04]} 7. cxd4 {[%emt 0:00:06]} b5 {[%emt 0:00:04]} 8. Bc2 {[%emt 0:00:08]} Nge7 {[%emt 0:00:04]} (8... d6 9. h3 Nf6 10. O-O O-O 11. Nc3 Bb7 12. Re1 Re8 13. Bg5 {0-1 (64) Sevian,S (2647)-Dreev,A (2670) chess.com INT 2019}) 9. O-O {[%emt 0:02:05]} O-O {[%emt 0:00:05]} 10. h3 {[%emt 0:01:59]} d6 {[%emt 0:05:25]} 11. a4 {[%emt 0:00:52]} b4 {[%emt 0:01:31]} 12. Be3 $146 {[%emt 0:00:33]} ({Predecessor:} 12. d5 Na5 13. Nbd2 {0-1 (40) Boel,M (2219)-Cherniaev,A (2439) London 2016}) 12... Na5 {[%emt 0:24:02]} 13. Nbd2 {[%emt 0:04:52]} Bb7 {[%emt 0:02:46]} 14. Rc1 {[%emt 0:01:52]} h6 {[%emt 0:05:11]} 15. Re1 {[%emt 0:02:25]} Qd7 {[%emt 0:04:29]} 16. Nf1 {[%emt 0:04:01]} Nc4 {[%emt 0:00:27]} 17. Qd3 {[%emt 0:02:02]} Nxe3 {[%emt 0:01:48]} ({Avoid the trap} 17... Nxb2 $2 18. Qb3 $18 {[%mdl 64] Double Attack, Trapped Piece}) 18. Nxe3 {[%emt 0:00:05]} a5 {[%emt 0:05:39]} 19. b3 {[%emt 0:02:16]} Ba6 {[%emt 0:03:41]} 20. Qd2 {[%emt 0:00:12]} c5 {[%emt 0:02:28]} (20... Bb7 $14) 21. dxc5 {[%emt 0:11:18]} Bc3 {[%emt 0:00:22]} (21... Rad8 {was called for.}) 22. Qxd6 {[%emt 0:00:09]} Qa7 {[%emt 0:00:54]} 23. Ng4 {[%emt 0:03:16]} Kg7 {[%emt 0:04:18]} 24. Re3 {[%emt 0:20:21]} Rad8 {[%emt 0:00:45]} 25. Qf4 {[%emt 0:00:11]} Ng8 {[%emt 0:01:44]} 26. Rxc3 {[%emt 0:00:17]} bxc3 {[%emt 0:00:13]} 27. Qe5+ {[%emt 0:00:08]} f6 {[%emt 0:01:44]} 28. Qxc3 {[%emt 0:00:23]} Bc8 {[%emt 0:00:24]} 29. Ne3 {[%emt 0:00:18]} Ne7 {[%emt 0:00:19]} 30. Nd4 {[%emt 0:01:29]} Qc7 {[%emt 0:00:36]} 31. Nb5 {[%emt 0:05:18]} Qf4 {[%emt 0:00:02]} (31... Qe5 {was worth a try.} 32. Qxa5 Qxc5) 32. Nd6 {[%emt 0:00:22]} Nc6 {[%emt 0:00:17]} 33. Nd5 $4 {[%emt 0:00:33]} (33. Bd3 $18) 33... Qxc1+ {[%emt 0:00:10]} 34. Kh2 {[%emt 0:00:11]} Be6 {[%emt 0:05:28]} 35. Nb7 {[%emt 0:19:03]} Rxd5 $19 {[%emt 0:08:58] Kg1 [%clk 0:20:58]} 0-1

[Event "3rd HoliCup Lake City 2019"]
[Site "Udaipur"]
[Date "2019.03.29"]
[Round "3.16"]
[White "Anil, Shivpuri"]
[Black "Suvankar, Maity"]
[Result "0-1"]
[ECO "D00"]
[WhiteElo "1605"]
[BlackElo "1911"]
[Annotator "NA RC"]
[PlyCount "134"]
[EventDate "2019.??.??"]
[EventCountry "IND"]
[SourceTitle "playchess.com"]
[Source "ChessBase"]
[SourceQuality "1"]
[TimeControl "5400+30"]

{[%evp 8,130,0,-4,-1,-26,-14,-20,7,0,3,0,66,48,36,43,67,0,0,-45,-31,-46,-44,-39,-28,-66,-45,-27,-6,-12,-3,-21,15,-13,-18,-48,-27,-47,-50,-65,-58,-52,-52,-67,0,-77,-61,-61,-66,-484,-57,-62,-50,-51,-52,-68,-60,-66,-54,-66,-66,-104,-87,-94,0,-108,-64,-89,-88,-114,-126,-159,-145,-146,-152,-175,-166,-156,-156,-163,-163,-160,-139,-191,-205,-168,-190,-266,-305,-239,-199,-178,-195,-204,-252,-233,-270,-429,-468,-424,-591,-483,-805,-918,-1109,-896,-1131,-1004,-855,-1684,-2243,-2195,-2277,-2102,-1954,-1739,-3190,-1930,-2331,-2630,-12013,-3085,-29977,-29980,-29981]} 1. d4 d5 {[%emt 0:10:53]} 2. Bf4 {[%emt 0:00:00]} e6 {[%emt 0:01:06]} 3. e3 {[%emt 0:00:00]} Nf6 {[%emt 0:00:26]} 4. c3 {[%emt 0:00:00]} Bd6 {[%emt 0:00:37]} 5. Bg3 {[%emt 0:00:07]} (5. Nd2 O-O 6. Bd3 Bxf4 7. exf4 c5 8. Ngf3 cxd4 9. Nxd4 Qc7 10. Ne2 b6 11. O-O Ba6 12. Nf3 Bxd3 13. Qxd3 {½-½ (30) Rakhmanov,A (2641)-Grandelius,N (2641) Linares 2016}) 5... Ne4 {[%emt 0:04:09]} 6. Bd3 {[%emt 0:00:12] D00: 1 d4 d5: Unusual lines} Nxg3 {[%emt 0:00:12]} 7. hxg3 {[%emt 0:00:15]} h6 {[%emt 0:01:06]} 8. Nf3 {[%emt 0:00:11]} Nd7 {[%emt 0:00:48]} 9. Nbd2 {[%emt 0:00:21]} e5 {[%emt 0:00:49]} (9... c5 $11) 10. dxe5 {[%emt 0:00:37]} Nxe5 {[%emt 0:00:14]} 11. Nxe5 {[%emt 0:00:35]} Bxe5 {[%emt 0:00:02]} 12. Nf3 {[%emt 0:00:20]} (12. f4 $5 {[%cal Rf4e5]} Bd6 13. Qf3 $11) 12... Bf6 {[%emt 0:00:21]} 13. Bc2 $146 {[%emt 0:02:01]} c6 {[%emt 0:02:09]} 14. Qd3 {[%emt 0:00:19]} Qb6 {[%emt 0:00:58]} 15. Rb1 {[%emt 0:03:15]} Bg4 {[%emt 0:01:53]} 16. Nd4 {[%emt 0:03:06]} O-O-O {[%emt 0:03:20]} 17. Bd1 {[%emt 0:01:43]} Bd7 {[%emt 0:01:08]} 18. b4 {[%emt 0:02:14]} g6 {[%emt 0:00:51]} 19. a4 {[%emt 0:04:48]} a6 {[%emt 0:00:49]} 20. Be2 {[%emt 0:00:47]} h5 {[%emt 0:01:23]} 21. Kd2 {[%emt 0:00:42]} Rde8 {[%emt 0:05:32]} 22. a5 {[%emt 0:03:27]} Qc7 {[%emt 0:00:48]} 23. Bf3 {[%emt 0:01:23]} Re7 {[%emt 0:02:29]} 24. Rb2 $11 {[%emt 0:00:43] remains equal.} Qe5 {[%emt 0:03:11]} 25. Nb3 {[%emt 0:03:56]} Qc7 {[%emt 0:02:26]} ({Black should try} 25... Qd6 $15) 26. Nc5 {[%emt 0:01:01]} Bf5 {[%emt 0:00:18]} 27. Qf1 $1 {[%emt 0:01:49]} Rd8 {[%emt 0:05:13]} 28. Nb3 $2 {[%emt 0:02:19] [#]} ({Better is} 28. Qc1 $15) 28... Rd6 $2 {[%emt 0:06:17]} ({Weaker is} 28... Qe5 29. Nd4 $17) (28... Bxc3+ $1 $19 {[%mdl 512]} 29. Kxc3 {[#]} Rxe3+ $1 {[%mdl 512]} 30. fxe3 Qe5+ {[%mdl 64] Double Attack} 31. Kd2 Qxb2+ {[%mdl 64] Double Attack} 32. Ke1 Qxb3 {[%mdl 64] Double Attack}) 29. Nd4 {[%emt 0:00:15]} Bd7 {[%emt 0:00:10]} 30. Be2 {[%emt 0:00:36]} Kd8 {[%emt 0:05:18]} 31. Bd3 {[%emt 0:03:57]} Ke8 {[%emt 0:03:06]} 32. Qb1 {[%emt 0:01:03]} Bg7 {[%emt 0:00:47]} 33. Rh4 {[%emt 0:01:03]} Kf8 {[%emt 0:01:14]} 34. Qd1 {[%emt 0:06:29]} Bf6 {[%emt 0:01:40]} 35. Rh1 {[%emt 0:00:57]} Bg7 {[%emt 0:01:15]} (35... Bg4 $17 36. Be2 Bd7) 36. Rh4 $1 {[%emt 0:01:20]} Bc8 {[%emt 0:01:35]} 37. Rc2 {[%emt 0:00:33]} Bh6 {[%emt 0:02:22]} 38. Nb3 {[%emt 0:02:35]} Rf6 {[%emt 0:02:25]} 39. Kc1 {[%emt 0:05:53] [#]} Rxf2 $1 {[%emt 0:03:39]} 40. Rxf2 {[%emt 0:01:38]} Bxe3+ {[%emt 0:00:02]} ({Resist} 40... Qxg3 41. Rhf4 $15) 41. Rd2 {[%emt 0:06:19]} Qxg3 {[%emt 0:00:06]} 42. Rh1 {[%emt 0:01:45]} Qxg2 $1 {[%emt 0:01:17] Pin} 43. Kc2 {[%emt 0:01:22]} Bxd2 {[%emt 0:00:17]} 44. Nxd2 {[%emt 0:00:12]} Bg4 {[%emt 0:01:49]} 45. Qg1 {[%emt 0:02:08] [#]} Qxg1 $1 {[%emt 0:00:16]} 46. Rxg1 {[%emt 0:00:09]} f5 {[%emt 0:00:31]} 47. Nf1 {[%emt 0:02:41]} Kf7 {[%emt 0:02:38]} 48. Kd2 {[%emt 0:00:11]} Kf6 {[%emt 0:01:08]} 49. Nh2 {[%emt 0:00:36]} Kg5 {[%emt 0:03:50]} 50. Nf3+ {[%emt 0:00:29]} Kf4 {[%emt 0:00:46]} 51. Nh4 {[%emt 0:01:53]} Re6 {[%emt 0:00:11]} 52. Rf1+ {[%emt 0:03:29]} (52. c4 {keeps fighting.}) 52... Kg3 {[%emt 0:01:59]} 53. Rh1 {[%emt 0:04:33]} Rf6 {[%emt 0:01:38]} 54. Ke1 {[%emt 0:02:56]} g5 {[%emt 0:00:48]} 55. Rg1+ {[%emt 0:06:08]} Kxh4 {[%emt 0:00:18]} 56. Kf2 {[%emt 0:00:19]} Bh3 {[%emt 0:01:02]} 57. Re1 {[%emt 0:03:30]} Rf7 {[%emt 0:00:47]} 58. Kf3 {[%emt 0:02:08]} f4 {[%emt 0:01:37]} 59. Re5 {[%emt 0:00:54]} Rf6 {[%emt 0:01:28]} 60. Kf2 {[%emt 0:04:05]} Re6 {[%emt 0:00:18]} 61. Rxe6 {[%emt 0:00:56]} Bxe6 {[%emt 0:00:21]} 62. Kf3 {[%emt 0:01:27]} Kh3 {[%emt 0:02:04]} 63. Bf1+ {[%emt 0:01:44] [#]} Kh2 $1 {[%emt 0:00:13]} 64. Kf2 {[%emt 0:00:54]} Bf5 {[%emt 0:00:24]} 65. c4 {[%emt 0:01:47]} dxc4 {[%emt 0:00:55]} 66. Bxc4 {[%emt 0:01:15]} g4 {[%emt 0:00:20]} 67. Bf1 {[%emt 0:00:45]} Be4 {[%emt 0:00:06]} 0-1

[Event "3rd HoliCup Lake City 2019"]
[Site "Udaipur"]
[Date "2019.03.29"]
[Round "3.17"]
[White "Dr, Sanjay Date"]
[Black "Anchit, Vyas"]
[Result "0-1"]
[ECO "B08"]
[WhiteElo "1605"]
[BlackElo "1890"]
[Annotator "NA RC"]
[PlyCount "103"]
[EventDate "2019.??.??"]
[EventCountry "IND"]
[SourceTitle "playchess.com"]
[Source "ChessBase"]
[SourceQuality "1"]
[TimeControl "5400+30"]

1. e4 {[%emt 0:00:00]} d6 {[%emt 0:00:00]} 2. d4 {[%emt 0:00:00]} g6 {[%emt 0:00:00]} 3. Nf3 {[%emt 0:00:00]} Nf6 {[%emt 0:00:00]} 4. Nc3 {[%emt 0:00:00]} Bg7 {[%emt 0:00:00]} 5. Be2 {[%emt 0:00:02]} O-O {[%emt 0:00:00]} 6. O-O {[%emt 0:00:30]} c6 {[%emt 0:00:28]} 7. h3 {[%emt 0:00:30]} Nbd7 {[%emt 0:00:30]} 8. Be3 {[%emt 0:00:30]} e5 {[%emt 0:00:30]} 9. Qd2 {[%emt 0:00:30]} Qe7 {[%emt 0:00:30]} 10. dxe5 {[%emt 0:00:30]} dxe5 {[%emt 0:00:30]} 11. Bh6 {[%emt 0:00:30]} Nc5 {[%emt 0:00:30]} 12. Bxg7 {[%emt 0:00:30]} Kxg7 {[%emt 0:00:30]} 13. Qe3 {[%emt 0:00:30]} a5 {[%emt 0:00:30]} 14. a4 {[%emt 0:00:30]} Nh5 {[%emt 0:00:30]} 15. Bc4 {[%emt 0:00:30]} Nf4 {[%emt 0:00:30]} 16. Kh2 {[%emt 0:00:30]} f6 {[%emt 0:00:30]} 17. Rad1 {[%emt 0:00:30]} Be6 {[%emt 0:00:30]} 18. Bxe6 {[%emt 0:00:30]} Nfxe6 {[%emt 0:00:30]} 19. Rd2 {[%emt 0:00:30]} Rfd8 {[%emt 0:00:30]} 20. Rfd1 {[%emt 0:00:30]} Rxd2 {[%emt 0:00:30]} 21. Rxd2 {[%emt 0:00:30]} Rd8 {[%emt 0:00:30]} 22. Rxd8 {[%emt 0:00:30]} Qxd8 {[%emt 0:00:30]} 23. Qd2 {[%emt 0:00:30]} Nd4 {[%emt 0:00:30]} 24. Kh1 {[%emt 0:00:30]} Nce6 {[%emt 0:00:30]} 25. Ng1 {[%emt 0:00:30]} Kf7 {[%emt 0:00:30]} 26. Nge2 {[%emt 0:00:30]} Nxe2 {[%emt 0:00:30]} 27. Qxe2 {[%emt 0:00:30]} Qd4 {[%emt 0:00:30]} 28. g3 {[%emt 0:00:30]} Qb4 {[%emt 0:00:30]} 29. Qd3 {[%emt 0:00:30]} Ke7 {[%emt 0:00:30]} 30. b3 {[%emt 0:00:30]} Qd4 {[%emt 0:00:30]} 31. Qe3 {[%emt 0:00:30]} Qxe3 {[%emt 0:00:30]} 32. fxe3 {[%emt 0:00:30]} Kd6 {[%emt 0:00:30]} 33. h4 {[%emt 0:00:30]} Kc5 {[%emt 0:00:30]} 34. Na2 {[%emt 0:00:30]} b5 {[%emt 0:00:30]} 35. axb5 {[%emt 0:00:30]} cxb5 {[%emt 0:00:30]} 36. Kg2 {[%emt 0:00:30]} a4 {[%emt 0:00:30]} 37. Kf2 {[%emt 0:00:30]} Nd8 {[%emt 0:00:30]} 38. bxa4 {[%emt 0:00:30]} bxa4 {[%emt 0:00:30]} 39. Ke2 {[%emt 0:00:30]} Kc4 {[%emt 0:00:30]} 40. Kd2 {[%emt 0:00:30]} Nc6 {[%emt 0:00:30]} 41. c3 {[%emt 0:00:30]} Kb3 {[%emt 0:00:30]} 42. Nc1+ {[%emt 0:00:30]} Kb2 {[%emt 0:00:30]} 43. Nd3+ {[%emt 0:00:30]} Kb1 {[%emt 0:00:30]} 44. c4 {[%emt 0:00:30]} a3 {[%emt 0:00:30]} 45. Nc1 {[%emt 0:00:30]} Na5 {[%emt 0:00:30]} 46. c5 {[%emt 0:00:30]} Nc4+ {[%emt 0:00:30]} 47. Kd1 {[%emt 0:00:30]} Nxe3+ {[%emt 0:00:30]} 48. Kd2 {[%emt 0:00:30]} Nc4+ {[%emt 0:00:30]} 49. Kd1 {[%emt 0:00:30]} a2 {[%emt 0:00:30]} 50. Nxa2 {[%emt 0:00:30]} Kxa2 {[%emt 0:00:30]} 51. c6 {[%emt 0:00:30]} Nb6 {[%emt 0:00:30]} 52. Ke2 {[%emt 0:00:30]} 0-1

[Event "3rd HoliCup Lake City 2019"]
[Site "Udaipur"]
[Date "2019.03.29"]
[Round "3.18"]
[White "Gupta, Dinesh"]
[Black "Devesh, Mukherjee"]
[Result "1-0"]
[ECO "B41"]
[WhiteElo "1593"]
[BlackElo "1884"]
[Annotator "NA RC"]
[PlyCount "101"]
[EventDate "2019.??.??"]
[EventCountry "IND"]
[SourceTitle "playchess.com"]
[Source "ChessBase"]
[SourceQuality "1"]
[TimeControl "5400+30"]

{[%evp 14,96,20,11,20,11,24,12,61,24,33,12,24,21,33,-7,-7,-22,0,3,1,-21,-31,-38,-33,-47,-50,-50,-27,-51,16,-22,-32,-95,-33,-27,11,6,23,14,10,-79,-52,-85,-116,-95,-82,-79,-88,-150,-104,-103,-62,-60,-69,-56,-27,-87,-71,-88,-96,-91,-58,-43,0,7,4,0,0,0,0,0,0,-14,-56,-50,-52,0,-45,-58,298,260,259,336,481]} 1. e4 {[%emt 0:00:00]} c5 {[%emt 0:00:42]} 2. Nf3 {[%emt 0:00:00]} e6 {[%emt 0:00:07]} 3. d4 {[%emt 0:00:00]} cxd4 {[%emt 0:00:07]} 4. Nxd4 {[%emt 0:00:00]} a6 {[%emt 0:00:48]} 5. a3 {[%emt 0:00:03]} Nf6 {[%emt 0:03:03]} 6. Nc3 {[%emt 0:00:08]} Qc7 {[%emt 0:02:51]} 7. Be2 {[%emt 0:00:55]} Be7 {[%emt 0:02:16]} 8. Be3 {[%emt 0:00:25]} Nc6 {[%emt 0:05:43]} 9. f4 {[%emt 0:00:33]} d6 {[%emt 0:00:18] B48: Sicilian: Taimanov: 5 Nc3 Qc7 6 Be3 a6 without Be2} 10. Bf3 {[%emt 0:00:46]} Nxd4 {[%emt 0:09:26]} (10... O-O $11) 11. Bxd4 {[%emt 0:00:23]} e5 {[%emt 0:00:08]} 12. Be3 {[%emt 0:00:17]} exf4 {[%emt 0:00:13]} 13. Bxf4 {[%emt 0:00:24]} Be6 {[%emt 0:00:04] [#]} 14. O-O $146 {[%emt 0:02:00]} ({Predecessor:} 14. Qd4 Nd7 15. O-O-O Ne5 16. Qa4+ {1-0 (40) Naiditsch,A (2698)-Qu,Y (2146) Jiangmen 2018}) 14... O-O {[%emt 0:00:09]} 15. Kh1 {[%emt 0:00:11]} Nd7 {[%emt 0:02:32]} 16. Nd5 {[%emt 0:05:30]} Bxd5 $1 {[%emt 0:00:50]} 17. exd5 {[%emt 0:00:17]} Bf6 {[%emt 0:06:11]} 18. Rb1 {[%emt 0:00:34]} b5 {[%emt 0:03:59]} 19. Be4 {[%emt 0:02:30]} Rfe8 {[%emt 0:02:44]} 20. Bd3 {[%emt 0:00:39]} Nc5 {[%emt 0:06:44]} 21. Rf3 {[%emt 0:03:37]} Na4 {[%emt 0:10:52] [#]} ({Better is} 21... Be5 $15) 22. c3 $2 {[%emt 0:07:14]} (22. Bxh7+ $1 $18 Kxh7 23. Rh3+ Kg8 24. Qh5) 22... g6 {[%emt 0:02:50]} 23. Bc2 {[%emt 0:08:49]} (23. Rf2 $11 {keeps the balance.}) 23... Nb6 {[%emt 0:02:38]} 24. a4 {[%emt 0:01:06]} Bg7 {[%emt 0:02:22]} 25. axb5 {[%emt 0:00:18]} axb5 {[%emt 0:00:07]} 26. Bd3 {[%emt 0:02:16]} Nc4 {[%emt 0:05:25]} 27. Bc1 {[%emt 0:00:57]} (27. b3 $1 $14 {stays ahead.} Na3 28. Rc1) 27... Qb7 {[%emt 0:03:33]} 28. b3 {[%emt 0:07:19]} Ne5 {[%emt 0:01:54]} 29. Rf1 {[%emt 0:01:52]} Qxd5 {[%emt 0:00:31]} 30. Be2 {[%emt 0:01:19]} Qc5 {[%emt 0:07:47]} 31. Bb2 {[%emt 0:02:15]} (31. Qd4 $142) 31... Re7 {[%emt 0:03:40]} 32. c4 {[%emt 0:01:05]} b4 {[%emt 0:01:11]} 33. Bd4 {[%emt 0:00:59]} Qc7 {[%emt 0:02:13]} 34. Qd2 {[%emt 0:00:24]} Rb8 {[%emt 0:03:08]} 35. Rbc1 {[%emt 0:00:56]} Nd7 {[%emt 0:01:37]} 36. Bxg7 {[%emt 0:01:06]} Kxg7 {[%emt 0:00:06]} 37. Bf3 {[%emt 0:00:47]} Nc5 {[%emt 0:00:49]} 38. Bd5 {[%emt 0:00:06]} Rf8 {[%emt 0:04:47]} 39. Qxb4 {[%emt 0:00:36]} Re3 {[%emt 0:01:30]} 40. Rf3 {[%emt 0:01:15]} Qe7 {[%emt 0:02:17]} 41. Qd2 {[%emt 0:01:03]} Rxf3 {[%emt 0:01:02]} 42. gxf3 {[%emt 0:00:10]} Qe5 {[%emt 0:00:02]} 43. f4 {[%emt 0:01:43]} Qf6 {[%emt 0:00:17]} 44. Rb1 $1 {[%emt 0:00:43]} Re8 {[%emt 0:00:35]} 45. b4 {[%emt 0:00:14]} Ne4 {[%emt 0:00:30]} 46. Qe3 {[%emt 0:02:34]} Nc3 $2 {[%emt 0:00:46]} (46... Qf5 $15 {keeps the upper hand.} 47. Rc1 Nf6) 47. Qxe8 {[%emt 0:00:38]} Nxb1 {[%emt 0:00:04] [#]} 48. b5 $1 {[%emt 0:02:04]} Na3 $18 {[%emt 0:01:41]} (48... Nc3 {keeps fighting.}) 49. Qxf7+ {[%emt 0:03:25]} Qxf7 {[%emt 0:00:44]} 50. Bxf7 {[%emt 0:00:01]} Kxf7 {[%emt 0:00:30]} 51. b6 {[%emt 0:00:01]} 1-0

[Event "3rd HoliCup Lake City 2019"]
[Site "Udaipur"]
[Date "2019.03.29"]
[Round "3.19"]
[White "Sarthak, Rawat"]
[Black "Shivshankar, Iyer S"]
[Result "1-0"]
[ECO "B33"]
[WhiteElo "1883"]
[BlackElo "1590"]
[Annotator "NA RC"]
[PlyCount "55"]
[EventDate "2019.??.??"]
[EventCountry "IND"]
[SourceTitle "playchess.com"]
[Source "ChessBase"]
[SourceQuality "1"]
[TimeControl "5400+30"]

{[%evp 13,55,38,32767,32767,32767,32767,32767,32767,56,46,50,35,43,-58,-43,-42,-46,-44,152,-53,-66,-75,-44,-36,21,0,80,79,32767,32767,32767,32767,781,829,991,542,533,542,537,554,656,732,610,640]} 1. e4 {[%emt 0:00:00]} c5 {[%emt 0:03:38]} 2. Nf3 {[%emt 0:00:00]} Nc6 {[%emt 0:00:07]} 3. d4 {[%emt 0:00:00]} cxd4 {[%emt 0:00:04]} 4. Nxd4 {[%emt 0:00:00]} Nf6 {[%emt 0:00:04]} 5. Nc3 {[%emt 0:00:00]} e5 {[%emt 0:00:04]} 6. Ndb5 {[%emt 0:00:02]} d6 {[%emt 0:00:03]} 7. Bg5 {[%emt 0:01:06]} a6 {[%emt 0:07:27]} 8. Na3 {[%emt 0:00:04]} b5 {[%emt 0:00:07]} 9. Bxf6 {[%emt 0:00:04]} gxf6 {[%emt 0:00:03]} 10. Nd5 {[%emt 0:00:05]} f5 {[%emt 0:00:52]} 11. Bd3 {[%emt 0:00:13]} Be6 {[%emt 0:00:17]} 12. c3 {[%emt 0:00:37]} Bg7 {[%emt 0:00:57]} 13. Qf3 {[%emt 0:03:59]} (13. Qh5 $14) 13... Bxd5 $1 {[%emt 0:14:52] B33: Sicilian: Pelikan and Sveshnikov Variations} (13... b4 14. Nc4 bxc3 15. bxc3 f4 16. O-O O-O 17. Ncb6 Ra7 18. Rab1 Kh8 19. h3 Rg8 20. Rfd1 Bf8 21. Bc4 {1-0 (37) Mitrovic,D (2342)-Djokic,N (2369) Valjevo 2010}) 14. exd5 {[%emt 0:00:05]} e4 {[%emt 0:00:15] Double Attack} 15. Qg3 {[%emt 0:01:12]} Rg8 $2 {[%emt 0:00:17]} ({But not} 15... exd3 16. dxc6 Qe7+ 17. Qe3 $11) (15... Be5 $15 {keeps the upper hand.} 16. Qh3 Ne7) 16. O-O $2 $146 {[%emt 0:03:40]} (16. Bxb5 $1 $16 axb5 17. dxc6) ({Predecessor:} 16. Qh3 Ne7 17. Be2 Nxd5 18. Qxh7 Ne7 19. Nc2 Qa5 20. Nb4 Kf8 21. Qh4 {1-0 (39) Winter,J (2115)-Krupa,M (2251) Lubawka 2006}) 16... Ne7 {[%emt 0:00:27]} 17. Bc2 {[%emt 0:02:21]} Be5 {[%emt 0:00:43]} ({Much weaker is} 17... Nxd5 $6 18. Rad1 $16) 18. Qh3 {[%emt 0:01:22]} Nxd5 {[%emt 0:02:50]} (18... Qd7 $15) 19. Qxf5 {[%emt 0:12:39]} Qh4 {[%emt 0:00:58]} (19... Bxh2+ $1 $11 {keeps the balance.} 20. Kh1 (20. Kxh2 Qh4+ 21. Kg1 Rxg2+ 22. Kxg2 Nf4+ 23. Kg1 Ne2+ 24. Kg2 Nf4+ 25. Kg1 Ne2+ 26. Kg2 Nf4+ $11) 20... Be5) 20. g3 {[%emt 0:01:11]} Bxg3 {[%emt 0:00:09]} 21. fxg3 {[%emt 0:00:34]} Rxg3+ {[%emt 0:00:06]} 22. Kh1 {[%emt 0:00:43]} Rh3 {[%emt 0:09:22]} 23. Qxe4+ {[%emt 0:01:36]} Kd7 {[%emt 0:01:41]} 24. Rxf7+ {[%emt 0:03:16]} Kc6 {[%emt 0:00:22]} 25. Qxh4 {[%emt 0:01:42]} Rxh4 {[%emt 0:00:08]} 26. Re1 {[%emt 0:02:17]} Kb6 {[%emt 0:02:25]} 27. Bb3 {[%emt 0:04:02]} Nf4 {[%emt 0:03:36]} 28. Re4 $18 {[%emt 0:00:35]} 1-0

[Event "3rd HoliCup Lake City 2019"]
[Site "Udaipur"]
[Date "2019.03.29"]
[Round "3.20"]
[White "Bhawesh, Pandiyar"]
[Black "Awadh, Chaitanya"]
[Result "0-1"]
[ECO "B32"]
[WhiteElo "1588"]
[BlackElo "1882"]
[Annotator "NA RC"]
[PlyCount "43"]
[EventDate "2019.??.??"]
[EventCountry "IND"]
[SourceTitle "playchess.com"]
[Source "ChessBase"]
[SourceQuality "1"]
[TimeControl "5400+30"]

{[%evp 9,42,40,60,0,6,-42,15,9,19,-91,-54,-122,-81,-118,-154,-130,-126,-141,-129,-115,-137,-147,-142,-252,-252,-266,-218,-459,-500,-450,-503,-85,-511,-515,-536]} 1. e4 {[%emt 0:00:00]} c5 {[%emt 0:00:00]} 2. Nf3 {[%emt 0:00:11]} Nc6 {[%emt 0:00:08]} 3. d4 {[%emt 0:00:39]} cxd4 {[%emt 0:00:10]} 4. Nxd4 {[%emt 0:00:13]} Qc7 {[%emt 0:00:10]} 5. Be3 {[%emt 0:01:59]} a6 {[%emt 0:00:16]} (5... Nf6 6. Nc3 e6 7. f3 a6 8. Qd2 b5 9. g4 h6 10. Nxc6 dxc6 11. O-O-O e5 12. h4 Be6 13. Bh3 Rd8 14. Qf2 Rxd1+ 15. Rxd1 Nd7 16. Kb1 Be7 17. f4 exf4 18. Bxf4 {½-½ (29) Adams,M (2716)-Anand,V (2781) Linares 1999}) 6. Nd2 {[%emt 0:02:16] B32: Sicilian: Löwenthal and Kalashnikov Variations} Nf6 {[%emt 0:01:02]} 7. Be2 {[%emt 0:02:19]} (7. Nxc6 $11 bxc6 8. Bd3) 7... e6 {[%emt 0:03:37]} (7... Nxd4 $15 8. Bxd4 e5) 8. O-O {[%emt 0:01:45]} d5 $146 {[%emt 0:00:54]} ({Predecessor:} 8... b5 9. c3 Bb7 10. Qc2 d5 11. Nxc6 Bxc6 12. Bf3 Bd6 13. h3 O-O 14. Rad1 Qb7 15. exd5 Nxd5 {0-1 (37) Ke,R (1562)-Meiyappan,A (1658) Pocos de Caldas 2017}) 9. f3 {[%emt 0:03:52]} (9. Nxc6 $11 bxc6 10. exd5) 9... Bd6 {[%emt 0:01:29]} 10. f4 {[%emt 0:08:32]} (10. Nxc6 $1 $15 bxc6 11. f4) 10... dxe4 {[%emt 0:05:25]} 11. c4 {[%emt 0:05:20]} Nxd4 {[%emt 0:10:13]} 12. Bxd4 {[%emt 0:00:09]} Bxf4 {[%emt 0:00:39]} 13. Bxf6 {[%emt 0:01:35]} gxf6 {[%emt 0:07:08]} 14. Nxe4 {[%emt 0:05:30]} Bxh2+ {[%emt 0:01:03]} 15. Kh1 {[%emt 0:00:21]} f5 {[%emt 0:00:34]} 16. Bh5 {[%emt 0:05:58]} (16. Qa4+ $17 Kf8 17. Qa3+ (17. Nf6 $2 Be5 $19) 17... Kg7 18. g3 fxe4 19. Kxh2) 16... O-O {[%emt 0:20:33]} ({Worse is} 16... Qxc4 17. Nf6+ Ke7 {[%mdl 64] Trapped Piece} 18. Qe1 $11) 17. Qd2 {[%emt 0:19:13]} f6 {[%emt 0:04:38]} ({Inferior is} 17... fxe4 18. Qg5+ Kh8 19. Qf6+ {[%mdl 64] Double Attack} Kg8 20. Qg5+ Kh8 21. Qf6+ {[%mdl 64] Double Attack} Kg8 22. Qg5+ $11) 18. Nxf6+ $2 {[%emt 0:07:45]} (18. g3 {keeps fighting.}) 18... Rxf6 {[%emt 0:02:21]} 19. Qg5+ {[%emt 0:00:09]} Qg7 {[%emt 0:00:12]} 20. Qxg7+ {[%emt 0:00:23]} Kxg7 {[%emt 0:00:02]} 21. Kxh2 {[%emt 0:00:22]} Rh6 $19 {[%emt 0:00:11]} 22. Kg1 0-1